bitfinex-derivatives/quotes_SOLF0:USTF0_20250312
["timestamp","ask_amount","ask_price","bid_price","bid_amount"]
[1741768665518,4.4042,124.64,124.56,49.86]
[1741768666311,0.05150841,124.61,124.59,0.06006497]
[1741768667318,8.0271,124.6,124.59,0.06006497]
[1741768667515,0.05150841,124.61,124.53,12.2039]
[1741768667816,8.0294,124.57,124.53,53.8326]
[1741768668223,76.85173621,124.63,124.53,53.8326]
[1741768668613,76.85173621,124.63,124.54,8.0306]
[1741768668808,0.05074924,124.59,124.57,0.05769658]
[1741768669011,0.05074924,124.59,124.48,32.08959898]
[1741768669012,27.34248545,124.59,124.49,4.0869]
[1741768669217,27.29173621,124.57,124.48,32.08959898]
[1741768669416,8.0321,124.53,124.48,32.08959898]
[1741768669606,4.3497,124.56,124.48,32.08959898]
[1741768669815,4.3497,124.56,124.47,27.29173621]
[1741768670107,0.05098389,124.53,124.5,0.0576857]
[1741768670607,8.08288389,124.53,124.5,0.0576857]
[1741768670812,0.05098389,124.53,124.5,0.0576857]
[1741768671317,27.3427201,124.53,124.45,32.08959898]
[1741768671514,4.0455,124.52,124.45,32.08959898]
[1741768671717,8.0329,124.51,124.45,32.08959898]
[1741768671915,8.0329,124.51,124.47,8.035]
[1741768672221,4.0455,124.52,124.45,32.08959898]
[1741768672416,4.0455,124.52,124.47,8.0349]
[1741768672612,0.05504641,124.5,124.47,0.05087522]
[1741768673016,0.05504641,124.5,124.49,8.0342]
[1741768673518,4.3497,124.56,124.53,8.0314]
[1741768673817,224.96977869,124.61,124.48,93.35807869]
[1741768674015,8.5451,124.59,124.52,44.03807869]
[1741768674220,4.3283,124.63,124.54,44.03807869]
[1741768674420,4.3283,124.63,124.55,49.22]
[1741768674623,0.05987793,124.6,124.58,8.028]
[1741768674920,0.05987793,124.6,124.57,0.0594946]
[1741768675113,0.05987793,124.6,124.58,8.0284]
[1741768675718,0.05987793,124.6,124.57,0.0594946]
[1741768677225,0.05987793,124.6,124.51,49.02]
[1741768677518,97.46717869,124.62,124.51,49.02]
[1741768677720,44.03807869,124.6,124.51,49.02]
[1741768677916,4.2808,124.59,124.51,49.02]
[1741768678111,4.2808,124.59,124.52,8.0318]
[1741768678313,4.2808,124.59,124.51,49.02]
[1741768678314,0.05869614,124.56,124.54,0.056838]
[1741768679821,8.0303,124.55,124.54,0.056838]
[1741768680214,0.05869614,124.56,124.54,0.056838]
[1741768680523,8.0303,124.55,124.54,0.056838]
[1741768680717,0.05869614,124.56,124.48,94.16087869]
[1741768681016,4.2808,124.59,124.5,44.03807869]
[1741768681613,8.0307,124.55,124.48,94.16087869]
[1741768681819,4.2808,124.59,124.5,44.03807869]
[1741768682014,0.06187859,124.55,124.52,0.05580687]
[1741768682418,8.09257859,124.55,124.52,8.08770687]
[1741768682621,0.06187859,124.55,124.52,0.05580687]
[1741768683126,8.0316,124.53,124.52,0.05580687]
[1741768683316,0.06187859,124.55,124.52,0.05580687]
[1741768683517,8.0316,124.53,124.52,0.05580687]
[1741768684925,44.09995728,124.55,124.45,240.86]
[1741768685227,48.44,124.54,124.46,8.0358]
[1741768685419,48.44,124.54,124.45,48.5]
[1741768685624,44.03807869,124.53,124.43,48.56]
[1741768685817,48.28747869,124.53,124.42,52.7403]
[1741768686031,8.0367,124.46,124.42,48.52]
[1741768686220,0.05839393,124.49,124.42,56.5584]
[1741768686424,48.52,124.5,124.4,44.03807869]
[1741768686623,0.05599558,124.47,124.39,4.1803]
[1741768686826,0.05599558,124.47,124.4,8.0397]
[1741768687113,8.0384,124.43,124.38,1.5763]
[1741768687317,44.03807869,124.44,124.37,32.08959898]
[1741768687724,8.0383,124.43,124.37,32.08959898]
[1741768688325,0.05572639,124.41,124.37,32.08959898]
[1741768688720,0.05572639,124.41,124.34,48.58]
[1741768688925,0.05572639,124.41,124.37,8.0417]
[1741768689127,0.05572639,124.41,124.34,92.61807869]
[1741768689319,8.0404,124.4,124.34,92.61807869]
[1741768689519,0.05572639,124.41,124.34,92.61807869]
[1741768689714,4.2494,124.46,124.38,44.03807869]
[1741768689923,4.2494,124.46,124.42,8.0385]
[1741768690123,0.05418338,124.43,124.39,48.54]
[1741768690627,0.05418338,124.43,124.42,8.0387]
[1741768691323,0.05418338,124.43,124.41,8.039]
[1741768691528,0.05418338,124.43,124.39,48.54]
[1741768691717,0.05418338,124.43,124.4,44.03807869]
[1741768691921,4.3393,124.49,124.42,44.03807869]
[1741768692127,12.3741,124.49,124.42,44.03807869]
[1741768692327,4.3795,124.5,124.43,48.64]
[1741768692526,4.2736,124.53,124.44,44.03807869]
[1741768692928,4.2736,124.53,124.49,8.0338]
[1741768693127,0.05174769,124.5,124.49,8.0338]
[1741768693932,0.05174769,124.5,124.48,0.05407748]
[1741768696832,0.05174769,124.5,124.48,8.08887748]
[1741768697626,0.05174769,124.5,124.49,8.0342]
[1741768698026,4.0292,124.59,124.49,2.4]
[1741768698228,4.0292,124.59,124.52,44.03807869]
[1741768698429,4.0292,124.59,124.53,48.0]
[1741768699223,0.0582089,124.57,124.55,8.0886426]
[1741768699432,0.0582089,124.57,124.55,0.0587426]
[1741768699626,4.0292,124.63,124.55,0.0587426]
[1741768699823,4.0292,124.63,124.56,44.03807869]
[1741768700438,4.0292,124.63,124.54,44.03807869]
[1741768700729,8.0281,124.59,124.54,52.06867869]
[1741768700936,0.05998896,124.6,124.57,0.06177402]
[1741768701328,8.0284,124.58,124.57,0.06177402]
[1741768701529,0.05713972,124.6,124.57,0.06177402]
[1741768702333,0.05713972,124.6,124.57,8.09037402]
[1741768702823,0.05713972,124.6,124.57,0.06177402]
[1741768703432,0.05713972,124.6,124.58,8.028]
[1741768703632,0.05713972,124.6,124.57,47.86177402]
[1741768704030,8.08433972,124.6,124.57,47.86177402]
[1741768704431,0.05713972,124.6,124.57,47.86177402]
[1741768704632,8.0284,124.58,124.57,0.06177402]
[1741768705839,8.0279,124.59,124.57,0.06177402]
[1741768706232,0.05713972,124.6,124.57,0.06177402]
[1741768706435,8.0277,124.59,124.57,0.06177402]
[1741768706631,0.05713972,124.6,124.57,0.06177402]
[1741768706832,0.05713972,124.6,124.58,91.83807869]
[1741768707137,44.03807869,124.7,124.58,91.83807869]
[1741768707336,4.3699,124.69,124.6,44.03807869]
[1741768707945,4.3699,124.69,124.58,91.83807869]
[1741768707946,8.0252,124.63,124.58,91.83807869]
[1741768708241,0.06079706,124.62,124.59,0.05557397]
[1741768708742,0.05421416,124.62,124.59,0.05334231]
[1741768709035,0.05421416,124.62,124.61,8.0264]
[1741768709234,8.7636,124.69,124.6,44.03807869]
[1741768709630,240.94,124.72,124.62,44.03807869]
[1741768709837,3.9922,124.74,124.64,44.03807869]
[1741768710035,3.9922,124.74,124.66,44.03807869]
[1741768710230,3.9922,124.74,124.67,48.04]
[1741768710438,0.05104261,124.71,124.69,0.05298006]
[1741768710636,96.01027869,124.74,124.64,47.98]
[1741768710831,96.01027869,124.74,124.69,0.06127833]
[1741768711137,8.0206,124.7,124.69,0.06127833]
[1741768711933,0.05835734,124.71,124.69,0.06127833]
[1741768713443,0.05835734,124.71,124.7,8.0206]
[1741768713745,12.6236,124.77,124.69,0.06127833]
[1741768714141,12.6236,124.77,124.68,91.81807869]
[1741768715041,0.05530123,124.74,124.71,0.05312563]
[1741768715444,8.07390123,124.74,124.71,0.05312563]
[1741768715936,8.0189,124.73,124.71,0.05312563]
[1741768716439,8.07360123,124.74,124.71,8.07312563]
[1741768716638,8.07360123,124.74,124.71,0.05312563]
[1741768717336,0.05530123,124.74,124.72,47.62]
[1741768717741,0.05530123,124.74,124.73,8.0187]
[1741768718441,0.05530123,124.74,124.72,55.6391]
[1741768718644,0.05530123,124.74,124.72,47.62]
[1741768718941,0.05530123,124.74,124.72,55.6391]
[1741768719442,0.05530123,124.74,124.72,47.62]
[1741768720141,1.23e-06,124.74,124.73,8.0187]
[1741768722340,1.23e-06,124.74,124.72,8.019]
[1741768722549,1.23e-06,124.74,124.72,55.099]
[1741768722745,1.23e-06,124.74,124.71,0.05312563]
[1741768722947,1.23e-06,124.74,124.71,47.11312563]
[1741768723139,1.23e-06,124.74,124.71,0.05312563]
[1741768723538,8.0194,124.72,124.71,0.05312563]
[1741768723742,1.23e-06,124.74,124.71,0.05312563]
[1741768724241,1.23e-06,124.74,124.71,8.07272563]
[1741768724441,1.23e-06,124.74,124.71,0.05312563]
[1741768725241,8.0194,124.72,124.71,0.05312563]
[1741768725444,26.98570027,124.74,124.65,46.86]
[1741768725843,8.0203,124.71,124.65,46.86]
[1741768726041,26.98569904,124.74,124.65,46.86]
[1741768726237,8.0217,124.69,124.66,46.78]
[1741768726442,26.98569904,124.74,124.66,46.78]
[1741768726637,0.05303437,124.69,124.66,46.83926346]
[1741768726846,0.05303437,124.69,124.67,8.022]
[1741768727146,0.05303437,124.69,124.66,46.84150952]
[1741768728544,0.05303437,124.69,124.66,54.86440952]
[1741768729042,8.07443437,124.69,124.66,0.06150952]
[1741768729546,0.05303437,124.69,124.66,0.06150952]
[1741768729754,8.0226,124.67,124.66,0.06150952]
[1741768730046,0.05303437,124.69,124.61,8.0259]
[1741768730246,4.149,124.68,124.59,50.3483]
[1741768731042,4.149,124.68,124.6,26.98569904]
[1741768731349,0.0521775,124.65,124.64,8.0242]
[1741768731548,0.0521775,124.65,124.62,0.05632094]
[1741768731743,0.0521775,124.65,124.6,46.14]
[1741768731943,0.0521775,124.65,124.62,0.05945892]
[1741768733453,0.0521775,124.65,124.62,8.08495892]
[1741768733752,0.0521775,124.65,124.62,0.05945892]
[1741768733951,8.0763775,124.65,124.62,0.05945892]
[1741768734658,0.0521775,124.65,124.62,0.05945892]
[1741768736550,0.0521775,124.65,124.57,46.06]
[1741768736853,4.0287,124.65,124.57,46.06]
[1741768737653,0.05069293,124.62,124.6,0.06090285]
[1741768738754,8.0264,124.61,124.6,0.06090285]
[1741768740051,8.029,124.57,124.52,267.68569904]
[1741768740355,0.05069293,124.62,124.55,8.0299]
[1741768740356,4.149,124.61,124.55,8.0299]
[1741768740850,8.0284,124.58,124.55,8.0299]
[1741768741250,0.05954226,124.58,124.55,0.05925839]
[1741768741457,27.0452413,124.58,124.47,79.79839898]
[1741768741751,27.0452413,124.58,124.51,8.0328]
[1741768741956,27.0452413,124.58,124.48,26.98569904]
[1741768742256,0.05954226,124.58,124.51,46.08]
[1741768742650,0.05954226,124.58,124.54,0.05408896]
[1741768743255,8.0301,124.56,124.54,0.05408896]
[1741768743448,27.0452413,124.58,124.54,0.05408896]
[1741768744461,0.05954226,124.58,124.54,0.05408896]
[1741768744849,0.05954226,124.58,124.56,8.0294]
[1741768745049,0.05954226,124.58,124.54,0.05408896]
[1741768745257,0.05954226,124.58,124.55,46.08]
[1741768745956,8.08824226,124.58,124.55,54.1102]
[1741768746159,8.08824226,124.58,124.55,46.08]
[1741768746360,8.08824226,124.58,124.54,0.05408896]
[1741768746361,0.05954226,124.58,124.54,0.05408896]
[1741768746555,0.05954226,124.58,124.54,8.08498896]
[1741768746964,0.05954226,124.58,124.54,0.05408896]
[1741768747159,8.0301,124.56,124.54,0.05408896]
[1741768747460,0.05954226,124.58,124.54,0.05408896]
[1741768747758,8.0296,124.57,124.54,0.05408896]
[1741768747956,0.05954226,124.58,124.54,0.05408896]
[1741768748153,8.0291,124.57,124.54,8.08458896]
[1741768748756,0.05954226,124.58,124.54,0.05408896]
[1741768749165,0.05954226,124.58,124.55,46.1]
[1741768749669,0.05954226,124.58,124.57,8.029]
[1741768749961,267.68569904,124.68,124.56,26.98569904]
[1741768750568,26.98569904,124.66,124.56,26.98569904]
[1741768750762,267.68569904,124.68,124.56,26.98569904]
[1741768750957,267.68569904,124.68,124.6,0.05943417]
[1741768751165,267.68569904,124.68,124.59,46.1]
[1741768751359,8.0268,124.61,124.59,46.1]
[1741768751872,0.05922356,124.61,124.59,46.15198361]
[1741768752372,0.05922356,124.61,124.59,54.17948361]
[1741768752667,0.05922356,124.61,124.59,46.15198361]
[1741768752866,0.05922356,124.61,124.59,54.17958361]
[1741768753073,0.05922356,124.61,124.59,46.15198361]
[1741768753463,0.05922356,124.61,124.6,8.0271]
[1741768753664,26.98569904,124.72,124.6,26.98569904]
[1741768753865,12.6815,124.7,124.62,26.98569904]
[1741768754071,12.6815,124.7,124.63,46.1]
[1741768754977,0.05263783,124.68,124.65,0.05293412]
[1741768755577,0.05263783,124.68,124.65,8.07663412]
[1741768755778,0.05263783,124.68,124.65,0.05293412]
[1741768757069,8.0226,124.67,124.65,0.05293412]
[1741768757278,0.05263783,124.68,124.65,0.05293412]
[1741768757575,0.05263783,124.68,124.65,8.07673412]
[1741768758179,0.05263783,124.68,124.65,0.05293412]
[1741768759674,0.05263783,124.68,124.67,8.0226]
[1741768759875,0.05263783,124.68,124.67,54.1026]
[1741768760075,0.05263783,124.68,124.67,46.08]
[1741768760383,0.05263783,124.68,124.65,0.05293412]
[1741768760575,0.05263783,124.68,124.65,46.13293412]
[1741768760771,0.05263783,124.68,124.66,8.0228]
[1741768761176,0.05263783,124.68,124.65,46.13293412]
[1741768761972,0.05263783,124.68,124.65,0.05293412]
[1741768762575,0.05263783,124.68,124.6,46.08]
[1741768762780,73.06569904,124.69,124.6,46.08]
[1741768763176,26.98569904,124.67,124.57,50.3106]
[1741768763580,26.98569904,124.67,124.58,8.028]
[1741768763781,8.0261,124.62,124.61,0.06008221]
[1741768764580,0.06033887,124.63,124.61,0.06008221]
[1741768764986,0.06033887,124.63,124.62,8.0258]
[1741768765786,0.06033887,124.63,124.61,8.08638221]
[1741768766885,8.08553887,124.63,124.61,0.06008221]
[1741768767484,8.08573887,124.63,124.61,0.06008221]
[1741768767685,0.06033887,124.63,124.61,0.06008221]
[1741768768687,8.08603887,124.63,124.61,0.06008221]
[1741768769084,0.06033887,124.63,124.61,0.06008221]
[1741768769687,8.0258,124.62,124.61,0.06008221]
[1741768769894,0.06033887,124.63,124.55,240.78]
[1741768770192,8.701,124.64,124.58,8.0283]
[1741768770391,8.701,124.64,124.54,50.2906]
[1741768770793,8.701,124.64,124.54,4.2306]
[1741768771087,8.701,124.64,124.55,46.06]
[1741768771292,0.05808916,124.6,124.59,8.0272]
[1741768771484,8.701,124.64,124.58,0.06182378]
[1741768771893,0.05731765,124.61,124.6,8.0267]
[1741768772088,0.05731765,124.61,124.55,73.04569904]
[1741768772292,0.05731765,124.61,124.6,8.0271]
[1741768772787,0.05731765,124.61,124.59,8.08161531]
[1741768772987,0.05731765,124.61,124.59,0.05421531]
[1741768773400,0.05731765,124.61,124.6,8.0271]
[1741768773595,0.05731765,124.61,124.6,54.0871]
[1741768775199,20.1789,124.67,124.6,46.06]
[1741768775390,12.1562,124.67,124.6,46.06]
[1741768775891,20.1791,124.67,124.6,46.06]
[1741768776091,12.1562,124.67,124.6,46.06]
[1741768776293,0.05126235,124.65,124.63,8.0251]
[1741768776685,0.05126235,124.65,124.62,8.08101746]
[1741768776889,0.05126235,124.65,124.62,0.05551746]
[1741768777696,0.05126235,124.65,124.63,8.0249]
[1741768778191,0.05126235,124.65,124.64,8.0245]
[1741768778397,0.05126235,124.65,124.62,0.05551746]
[1741768778701,0.05126235,124.65,124.64,8.0245]
[1741768779992,0.05126235,124.65,124.64,54.0845]
[1741768781690,4.1257,124.71,124.64,46.04]
[1741768781894,4.1257,124.71,124.65,26.98569904]
[1741768782097,4.1257,124.71,124.69,8.0208]
[1741768782291,4.1257,124.71,124.65,26.98569904]
[1741768782797,0.06188313,124.69,124.67,0.0615066]
[1741768783192,0.06188313,124.69,124.68,8.0219]
[1741768783393,0.06188313,124.69,124.67,0.0615066]
[1741768783994,0.06188313,124.69,124.67,8.0837066]
[1741768784195,0.06188313,124.69,124.67,0.0615066]
[1741768784596,0.06188313,124.69,124.68,8.0219]
[1741768784994,0.06188313,124.69,124.67,0.0615066]
[1741768785186,0.06188313,124.69,124.67,8.0838066]
[1741768785702,0.06188313,124.69,124.67,0.0615066]
[1741768785893,0.06188313,124.69,124.68,8.0219]
[1741768786197,0.06188313,124.69,124.67,0.0615066]
[1741768786993,8.0219,124.68,124.67,0.0615066]
[1741768787193,0.06188313,124.69,124.67,0.0615066]
[1741768787393,0.06188313,124.69,124.67,8.0835066]
[1741768787592,0.06188313,124.69,124.67,0.0615066]
[1741768788095,8.08328313,124.69,124.67,0.0615066]
[1741768788305,0.06188313,124.69,124.67,0.0615066]
[1741768789392,0.06188313,124.69,124.67,8.0840066]
[1741768789996,0.06188313,124.69,124.68,8.0219]
[1741768790603,0.06188313,124.69,124.68,24.90829817]
[1741768791497,0.06188313,124.69,124.68,8.0219]
[1741768792403,0.06188313,124.69,124.67,8.0837066]
[1741768792597,16.9482813,124.69,124.67,0.0615066]
[1741768792807,16.9482813,124.69,124.61,16.88639817]
[1741768793007,16.88639817,124.69,124.61,16.88639817]
[1741768793207,16.88639817,124.69,124.6,82.25459898]
[1741768793407,8.3552,124.68,124.6,82.25459898]
[1741768793609,8.3552,124.68,124.62,8.0255]
[1741768793906,0.05083436,124.66,124.64,0.05563755]
[1741768794309,8.0239,124.65,124.64,0.05563755]
[1741768794607,0.05083436,124.66,124.57,313.72166118]
[1741768794805,8.0231,124.67,124.57,313.72166118]
[1741768795002,8.0231,124.67,124.59,27.04166118]
[1741768795202,8.3552,124.68,124.62,8.0254]
[1741768795404,8.0238,124.66,124.62,8.0254]
[1741768795703,0.05123697,124.66,124.64,0.06050896]
[1741768795912,0.05123697,124.66,124.61,46.0]
[1741768796106,0.05123697,124.66,124.64,0.05481732]
[1741768796410,8.07473697,124.66,124.64,0.05481732]
[1741768796910,0.05123697,124.66,124.64,0.05481732]
[1741768797203,8.0239,124.65,124.64,0.05481732]
[1741768797913,4.0026,124.65,124.58,46.0]
[1741768798206,4.0026,124.65,124.6,8.027]
[1741768798907,0.05674231,124.64,124.61,0.04109166]
[1741768799205,8.0256,124.63,124.61,0.04109166]
[1741768799510,8.0256,124.63,124.61,8.06739166]
[1741768799710,0.05674231,124.64,124.61,0.04109166]
[1741768799901,0.05674231,124.64,124.61,27.08275284]
[1741768800206,0.05674231,124.64,124.61,0.04109166]
[1741768800612,0.05674231,124.64,124.61,27.08275284]
[1741768800812,0.05674231,124.64,124.63,8.0251]
[1741768801206,46.0,124.71,124.63,27.04166118]
[1741768801207,8.0205,124.71,124.63,27.04166118]
[1741768801503,8.0205,124.71,124.68,8.0218]
[1741768801907,8.0253,124.72,124.63,27.04166118]
[1741768802213,8.0253,124.72,124.65,27.04166118]
[1741768802413,0.05942316,124.69,124.68,8.0213]
[1741768804117,2.316e-05,124.69,124.68,8.0213]
[1741768804415,4.1016,124.75,124.67,27.1020904]
[1741768804615,4.1016,124.75,124.69,27.04166118]
[1741768804820,4.1016,124.75,124.73,8.0185]
[1741768805411,0.05259017,124.75,124.71,27.04166118]
[1741768805608,0.05259017,124.75,124.73,0.05435419]
[1741768806815,0.05259017,124.75,124.74,8.0181]
[1741768807316,0.05259017,124.75,124.73,0.05435419]
[1741768807817,0.05259017,124.75,124.74,8.0181]
[1741768808006,0.05259017,124.75,124.74,53.9781]
[1741768808213,0.05259017,124.75,124.74,45.96]
[1741768808607,0.05259017,124.75,124.73,0.05435419]
[1741768811407,8.0181,124.74,124.73,0.05435419]
[1741768811614,45.96,124.74,124.65,441.22073599]
[1741768811813,4.2991,124.73,124.65,441.22073599]
[1741768812017,4.2991,124.73,124.66,54.03989935]
[1741768812419,8.0204,124.71,124.66,62.06269935]
[1741768812619,0.05662836,124.71,124.68,0.0567133]
[1741768812819,8.0213,124.69,124.68,15.0201533]
[1741768813319,0.05662836,124.71,124.68,15.0201533]
[1741768814512,0.05662836,124.71,124.68,23.0416533]
[1741768815022,0.05662836,124.71,124.68,15.0201533]
[1741768816827,0.05662836,124.71,124.69,8.021]
[1741768817122,0.05662836,124.71,124.68,15.0201533]
[1741768818424,0.05662836,124.71,124.7,8.0206]
[1741768820016,8.1496,124.77,124.69,27.04166118]
[1741768820429,4.25924105,124.78,124.71,27.04166118]
[1741768820625,4.25924105,124.78,124.75,8.0174]
[1741768820820,4.25924105,124.78,124.71,72.96166118]
[1741768821022,12.27504105,124.78,124.74,8.0176]
[1741768821328,0.05306582,124.76,124.73,0.05763902]
[1741768822127,0.05306582,124.76,124.74,8.0177]
[1741768822424,0.05306582,124.76,124.73,0.05763902]
[1741768823224,0.05306582,124.76,124.74,8.0176]
[1741768823426,0.05306582,124.76,124.73,0.05763902]
[1741768823627,8.07016582,124.76,124.73,0.05763902]
[1741768823922,0.05306582,124.76,124.73,0.05763902]
[1741768824127,8.0177,124.75,124.73,0.05763902]
[1741768824329,0.05306582,124.76,124.73,8.07633902]
[1741768824726,8.07016582,124.76,124.73,8.07633902]
[1741768825127,8.0174,124.75,124.73,8.07633902]
[1741768825324,0.05306582,124.76,124.73,0.05763902]
[1741768825728,8.07016582,124.76,124.73,8.07583902]
[1741768826030,0.05306582,124.76,124.73,0.05763902]
[1741768826229,0.05306582,124.76,124.75,8.0174]
[1741768827226,6.582e-05,124.76,124.75,8.0174]
[1741768828729,6.582e-05,124.76,124.73,0.05763902]
[1741768829831,6.582e-05,124.76,124.74,8.0178]
[1741768830328,6.582e-05,124.76,124.73,0.05763902]
[1741768833941,6.582e-05,124.76,124.74,8.0176]
[1741768834134,6.582e-05,124.76,124.73,0.05763902]
[1741768834636,6.582e-05,124.76,124.75,8.0174]
[1741768834840,6.582e-05,124.76,124.73,0.05763902]
[1741768835029,6.582e-05,124.76,124.74,8.0177]
[1741768835334,6.582e-05,124.76,124.73,0.05763902]
[1741768835742,8.01716582,124.76,124.73,8.07603902]
[1741768836238,6.582e-05,124.76,124.74,8.0181]
[1741768836840,6.582e-05,124.76,124.73,0.05763902]
[1741768837335,8.0174,124.75,124.73,0.05763902]
[1741768837837,6.582e-05,124.76,124.73,0.05763902]
[1741768838031,8.018,124.75,124.73,0.05763902]
[1741768838439,6.582e-05,124.76,124.73,0.05763902]
[1741768838641,8.01726582,124.76,124.73,0.05763902]
[1741768838944,6.582e-05,124.76,124.73,0.05763902]
[1741768839643,8.018,124.75,124.73,0.05763902]
[1741768839943,6.582e-05,124.76,124.73,0.05763902]
[1741768840643,8.01696582,124.76,124.73,0.05763902]
[1741768840844,6.582e-05,124.76,124.73,0.05763902]
[1741768841144,8.0177,124.75,124.73,0.05763902]
[1741768841635,6.582e-05,124.76,124.74,8.018]
[1741768841842,6.582e-05,124.76,124.73,0.05763902]
[1741768842743,6.582e-05,124.76,124.74,8.0176]
[1741768842935,6.582e-05,124.76,124.73,0.05763902]
[1741768843645,6.582e-05,124.76,124.74,8.0178]
[1741768844346,6.582e-05,124.76,124.75,8.0174]
[1741768844741,6.582e-05,124.76,124.74,8.0178]
[1741768844939,6.582e-05,124.76,124.73,0.05763902]
[1741768845837,6.582e-05,124.76,124.75,8.0174]
[1741768846637,6.582e-05,124.76,124.75,70.70326518]
[1741768848451,6.582e-05,124.76,124.75,53.8374]
[1741768849154,6.582e-05,124.76,124.73,0.05763902]
[1741768850149,8.01696582,124.76,124.73,0.05763902]
[1741768850553,8.01696582,124.76,124.73,8.07603902]
[1741768851162,6.582e-05,124.76,124.73,0.05763902]
[1741768851350,3.9966,124.75,124.69,32.50587501]
[1741768851550,25.17686518,124.75,124.69,32.50587501]
[1741768851754,25.17686518,124.75,124.68,14.96344]
[1741768852258,8.0188,124.73,124.69,8.0209]
[1741768852459,25.17686518,124.75,124.69,8.0209]
[1741768852660,0.05123161,124.72,124.7,0.05326477]
[1741768852855,0.05123161,124.72,124.7,8.07376477]
[1741768853656,0.05123161,124.72,124.7,0.05326477]
[1741768853860,8.07093161,124.72,124.7,0.05326477]
[1741768854559,8.02,124.71,124.7,0.05326477]
[1741768854751,0.05123161,124.72,124.68,14.96344]
[1741768854949,27.06113803,124.72,124.68,14.96344]
[1741768855156,27.06113803,124.72,124.63,32.50587501]
[1741768855157,8.0236,124.66,124.63,32.50587501]
[1741768855661,8.0224,124.68,124.64,8.0241]
[1741768855956,0.05226956,124.66,124.63,32.56347415]
[1741768856255,27.00990642,124.72,124.63,32.50587501]
[1741768856456,0.05594818,124.66,124.63,32.56373737]
[1741768856655,27.00990642,124.72,124.64,8.0241]
[1741768856856,0.05618295,124.66,124.64,8.0241]
[1741768857053,27.00990642,124.72,124.64,8.0241]
[1741768857254,0.05329668,124.66,124.64,8.0797658]
[1741768857453,27.00990642,124.72,124.6,76.82920642]
[1741768857657,0.0618569,124.66,124.64,0.05745227]
[1741768857859,180.9317,124.74,124.64,72.86735869]
[1741768858052,47.19576858,124.77,124.64,72.80990642]
[1741768858053,74.205675,124.77,124.64,72.80990642]
[1741768858254,27.00990642,124.75,124.64,72.80990642]
[1741768858463,27.00990642,124.75,124.66,8.0228]
[1741768858664,27.00990642,124.75,124.64,72.80990642]
[1741768858960,45.8,124.77,124.66,27.00990642]
[1741768859157,0.05361549,124.71,124.68,0.05480205]
[1741768859357,0.05361549,124.71,124.68,45.83480205]
[1741768859559,45.8,124.77,124.68,45.78]
[1741768859760,3.439e-05,124.71,124.68,72.84256397]
[1741768859961,0.08014105,124.78,124.74,8.018]
[1741768859962,8.09594105,124.78,124.74,8.018]
[1741768860266,0.08014105,124.78,124.74,8.018]
[1741768860565,4.32544105,124.78,124.68,72.78990642]
[1741768860865,27.00990642,124.77,124.68,45.78]
[1741768861064,8.0192,124.73,124.72,0.06085987]
[1741768861261,0.06155407,124.74,124.72,0.06085987]
[1741768861658,0.06155407,124.74,124.72,8.07985987]
[1741768861860,0.06155407,124.74,124.72,0.06085987]
[1741768862056,0.06155407,124.74,124.73,8.0187]
[1741768862264,5.407e-05,124.74,124.73,8.0187]
[1741768864557,5.407e-05,124.74,124.72,45.84085987]
[1741768864758,5.407e-05,124.74,124.72,53.85975987]
[1741768864966,5.407e-05,124.74,124.72,45.84085987]
[1741768865160,5.407e-05,124.74,124.72,0.06085987]
[1741768866967,8.01855407,124.74,124.72,0.06085987]
[1741768867365,5.407e-05,124.74,124.72,0.06085987]
[1741768867770,5.407e-05,124.74,124.73,8.0187]
[1741768868069,5.407e-05,124.74,124.73,53.7587]
[1741768868274,0.08014105,124.78,124.77,8.0161]
[1741768870976,0.08014105,124.78,124.76,8.07424313]
[1741768871176,0.08014105,124.78,124.76,0.05764313]
[1741768871479,0.08014105,124.78,124.76,8.07414313]
[1741768872574,0.08014105,124.78,124.77,8.0161]
[1741768872575,4.105e-05,124.78,124.77,8.0161]
[1741768872772,3.8e-05,124.79,124.77,72.72990642]
[1741768873170,3.8e-05,124.79,124.78,8.0155]
[1741768873571,4.1717,124.86,124.77,72.72990642]
[1741768873774,12.1821,124.86,124.77,72.72990642]
[1741768874169,4.1717,124.86,124.83,8.0123]
[1741768874372,4.1717,124.86,124.79,27.00990642]
[1741768874568,4.1717,124.86,124.81,0.0508234]
[1741768874771,0.05706489,124.84,124.81,0.0508234]
[1741768875170,0.05706489,124.84,124.83,8.0117]
[1741768875579,0.05706489,124.84,124.82,8.0128]
[1741768875777,0.05706489,124.84,124.81,45.7508234]
[1741768876672,0.05706489,124.84,124.82,8.0129]
[1741768877172,0.05706489,124.84,124.83,8.0123]